Cogmind - Beta 10.1 @@@ ROGUE MODE // 2020.09.29 @ 19:04:48 Player: RAT Result: Destroyed by D-53 Grenadier with Mini Grenade Launcher Performance ------------- Evolutions (0) 0 Regions Visited (2) 400 Robots Destroyed (9) 45 Value Destroyed (163) 163 Prototype IDs (0) 0 Alien Tech Used (0) 0 Bonus (0) 0 TOTAL SCORE: 608 Bonus ------- None Cogmind --------- Core Integrity 0/250 Matter 230/300 Energy 250/250 System Corruption 7% Temperature Cool (0) Movement Walking (210) Ox3 Location -10/Mines Parts ------- > --- POWER (1) -------- Ion Engine > --- PROPULSION (2) --- Aluminum Leg > --- UTILITY (2) ------ Large Storage Unit Large Storage Unit > --- WEAPON (2) ------- (None) > --- INVENTORY (16) --- Light Nuclear Core Light Treads Peak State ------------ > --- POWER ------------ Ion Engine > --- PROPULSION ------- Aluminum Leg Aluminum Leg > --- UTILITY ---------- Large Storage Unit Large Storage Unit > --- WEAPON ----------- Assault Rifle Rocket Launcher > --- INVENTORY -------- Ion Engine Light Nuclear Core Light Treads Aluminum Leg [Rating: 8] Favorites ----------- Power Ion Engine Engine Ion Engine Propulsion Aluminum Leg Treads Light Treads Leg Aluminum Leg Utility Large Storage Unit Storage Large Storage Unit Weapon Light Assault Rifle Energy Gun EM Pulse Gun Ballistic Gun Light Assault Rifle Launcher Rocket Launcher Build | -11 -10 -10 ------- Run | Scr Mat Min Slots Evolved . | . . . Power . | . . . Propulsion . | . . . Utility . | . . . Weapon . | . . . Parts Attached 18 | 6 4 8 Power 2 | 1 . 1 Engine 2 | 1 . 1 Core . | . . . Reactor . | . . . Propulsion 7 | 2 2 3 Treads 2 | . 2 . Leg 5 | 2 . 3 Wheel . | . . . Hover . | . . . Flight . | . . . Utility 3 | 1 2 . Device . | . . . Storage 3 | 1 2 . Processor . | . . . Hackware . | . . . Protection . | . . . Artifact . | . . . Weapon 6 | 2 . 4 Energy Gun 2 | . . 2 Energy Cannon . | . . . Ballistic Gun 3 | 2 . 1 Ballistic Cannon . | . . . Launcher 1 | . . 1 Special Weapon . | . . . Impact Weapon . | . . . Slashing Weapon . | . . . Piercing Weapon . | . . . Special Melee Weapon . | . . . Unidentified Prototypes . | . . . Parts Lost 7 | . . 7 Power 1 | . . 1 Propulsion 3 | . . 3 Utility . | . . . Weapon 3 | . . 3 Highest Loss Streak 5 | . . 5 Average Slot Usage (%) 90 | . 92 89 Engine 14 | . 14 14 Treads 5 | . 14 2 Leg 19 | . 14 21 Storage 26 | . 21 28 Energy Gun 6 | . . 8 Ballistic Gun 16 | . 28 12 Naked Turns . | . . . Heaviest Build 43 | 12 40 43 Greatest Support 40 | 20 40 20 Greatest Overweight (x) 3 | 1 . 3 Average Overweight (x) . | . . 1 Largest Inventory Capacity 16 | 6 16 16 Average Capacity 13 | 5 10 16 Most Carried 6 | 6 6 6 Average Carried 4 | 4 4 4 Final Capacity 16 | 6 16 16 Final Carried 4 | 4 4 2 Class Distribution -------------------- 100% | Mutant Dominant Class ---------------- Mutant | -10/Materials Mutant | -10/Mines Resources | -11 -10 -10 ----------- Run | Scr Mat Min Matter Collected 393 | 216 . 177 Remotely . | . . . Salvage Created 227 | . . 227 Parts 10 | . . 10 Haulers Intercepted . | . . . Recyclers Shooed 1 | . . 1 Parts Field Recycled . | . . . Retrieved Matter . | . . . Parts Self-Destructed . | . . . Prevented . | . . . Kills | -11 -10 -10 ------- Run | Scr Mat Min Combat Hostiles Destroyed 8 | . . 8 Guns 6 | . . 6 AOE 2 | . . 2 Classes Destroyed 3 | . . 3 Worker 1 | . . 1 Grunt 4 | . . 4 Assembled 4 | . . 4 Best Kill Streak 4 | . . 4 Combat Bots Only 4 | . . 4 Max Kills in Single Turn 1 | . . 1 Gunslinging . | . . . Exploded 1 | . . 1 Melee . | . . . Uniques/NPCs Destroyed . | . . . Combat | -11 -10 -10 -------- Run | Scr Mat Min Damage Taken 1169 | . 251 918 Core 269 | . 44 225 Absorbed by Shields . | . . . Core Remaining (%) 100 | 100 . . Volleys Fired 37 | . 2 35 Largest 2 | . 2 2 Hottest 60 | . 40 60 Shots Fired 63 | . 4 59 Gun 60 | . 4 56 Cannon . | . . . Launcher 3 | . . 3 Special . | . . . Kinetic 43 | . 4 39 Thermal . | . . . Explosive 3 | . . 3 Electromagnetic 17 | . . 17 Robot Hit Streak 6 | . 2 6 Robot Miss Streak 3 | . 1 3 Penetration Max . | . . . Secondary Targets 1 | . . 1 Max Gunslinging Chain 1 | . . 1 Shots Hit Robots 42 | . 3 39 Core Hits 21 | . 1 20 Critical Hits . | . . . Critical Kills . | . . . Critical Parts Destroyed . | . . . Melee Attacks . | . . . Impact . | . . . Slashing . | . . . Piercing . | . . . Sneak Attacks . | . . . Combat Hostiles . | . . . Follow-up Attacks . | . . . Damage Inflicted 766 | . 32 734 Guns 407 | . 32 375 Cannons . | . . . Explosions 359 | . . 359 Melee . | . . . Ramming . | . . . Kinetic 355 | . 32 323 Thermal . | . . . Explosive 359 | . . 359 Electromagnetic 52 | . . 52 Impact . | . . . Slashing . | . . . Piercing . | . . . Highest Corruption 7 | . . 7 Average Corruption 6 | . . 6 Corruption Purged . | . . . Effects 2 | . . 2 Energy Discharges 1 | . . 1 Parts Rejected 1 | . . 1 Overload Shots . | . . . Overflow Damage 8 | . . 8 Projectiles . | . . . Explosions 8 | . . 8 Melee . | . . . Knockbacks . | . . . Impact . | . . . Kinetic . | . . . Secondary . | . . . Self-Inflicted Damage 76 | . . 76 Shots 2 | . . 2 Rammed . | . . . Targets Rammed . | . . . Kicked . | . . . Crushed . | . . . Highest Temperature 180 | . 15 180 Average Temperature 62 | . 8 68 Received Heat Transfer 455 | . 144 311 Siege Activations . | . . . Robots Corrupted . | . . . Combat Hostiles . | . . . Parts Fried . | . . . Impact Corruptions . | . . . Robots Melted . | . . . Combat Hostiles . | . . . Parts Melted . | . . . Heat Transferred . | . . . Parts Sabotaged . | . . . Parts Stolen . | . . . Parts Stripped . | . . . Power Chain Reactions . | . . . Missiles Intercepted . | . . . Alert | -11 -10 -10 ------- Run | Scr Mat Min Peak Influence 96 | . 30 96 Initial 11 | . . 11 Average 41 | . 13 60 Maximum Alert Level . | . . . Low Security (%) 100 | 100 100 100 Level 1 . | . . . Level 2 . | . . . Level 3 . | . . . Level 4 . | . . . Level 5 . | . . . High Security . | . . . Max Security . | . . . Squads Dispatched . | . . . Investigation . | . . . Extermination . | . . . Reinforcement . | . . . Assault . | . . . Garrison . | . . . Intercept . | . . . Construction Impeded . | . . . Haulers Reinforced . | . . . Stealth | -11 -10 -10 --------- Run | Scr Mat Min Distress Signals . | . . . Communications Jammed . | . . . Distress Signals . | . . . Times Spotted 19 | . 5 14 Peak Tracking Total 7 | . 5 7 Tactical Retreats 2 | . . 2 Traps | -11 -10 -10 ------- Run | Scr Mat Min Traps Triggered . | . . . Indirectly . | . . . Trap Hack Attempts . | . . . Triggered . | . . . Disarmed . | . . . Reprogrammed . | . . . Reused . | . . . Traps Extracted . | . . . Installed . | . . . Triggered . | . . . Machines | -11 -10 -10 ---------- Run | Scr Mat Min Machines Disabled . | . . . Max in Single Turn . | . . . Machines Sabotaged . | . . . Garrisons Compromised . | . . . Overloaded Fab Kills . | . . . Fab Network Shutdowns . | . . . Hacking | -11 -10 -10 --------- Run | Scr Mat Min Machines Accessed . | . . . Terminals . | . . . Fabricators . | . . . Repair Stations . | . . . Recycling Units . | . . . Scanalyzers . | . . . Garrison Access . | . . . Total Hacks . | . . . Successful . | . . . Failed . | . . . Catastrophic . | . . . Database Lockouts . | . . . Manual . | . . . Terminals . | . . . Fabricators . | . . . Repair Stations . | . . . Recycling Units . | . . . Scanalyzers . | . . . Garrison Access . | . . . Terminal Hacks . | . . . Fabricator Hacks . | . . . Repair Station Hacks . | . . . Recycling Unit Hacks . | . . . Scanalyzer . | . . . Garrison Access Hacks . | . . . Unauthorized Hacks . | . . . Terminals . | . . . Fabricators . | . . . Repair Stations . | . . . Recycling Units . | . . . Scanalyzers . | . . . Garrison Access . | . . . Data Cores Recovered . | . . . Used . | . . . Hacking Detections . | . . . Full Trace Events . | . . . Feedback Events . | . . . Feedback Blocked . | . . . Robot Schematics Acquired . | . . . Robots Built . | . . . Matter . | . . . Time . | . . . Total Robot Build Rating . | . . . Part Schematics Acquired . | . . . Parts Built . | . . . Matter . | . . . Time . | . . . Total Part Build Rating . | . . . Parts Repaired . | . . . Time . | . . . Parts Recycled . | . . . Recycled Matter . | . . . Retrieved Matter . | . . . Retrieved Components . | . . . Parts Scanalyzed . | . . . Part Schematics Acquired . | . . . Parts Damaged . | . . . Bothacking | -11 -10 -10 ------------ Run | Scr Mat Min Used RIF Installer . | . . . Robots Hacked . | . . . Non-combat . | . . . Combat . | . . . Robot Hacks Applied . | . . . Relay Couplers Released . | . . . Robots Rewired . | . . . Allies Hacked . | . . . Hacks Repelled . | . . . Allies | -11 -10 -10 -------- Run | Scr Mat Min Total Allies . | . . . Largest Group . | . . . Highest-Rated Group . | . . . Highest-Rated Ally . | . . . Total Orders . | . . . Ally Attacks . | . . . Total Damage . | . . . Kills . | . . . Allies Corrupted . | . . . Allies Melted . | . . . Intel | -11 -10 -10 ------- Run | Scr Mat Min Robot Analysis Total . | . . . Derelict Logs Recovered 1 | . . 1 Drone Launches . | . . . Drone Recoveries . | . . . Exploration | -11 -10 -10 ------------- Run | Scr Mat Min Turns Passed 385 | 66 75 244 Spaces Moved 180 | 48 46 86 Core 21 | 21 . . Treads 19 | . 18 1 Legs 140 | 27 28 85 Wheels . | . . . Hover . | . . . Flight . | . . . Fastest Speed 50 | 50 120 150 Average Speed 138 | 95 135 163 Slowest Speed 210 | 120 160 210 Overloaded Moves . | . . . Propulsion Burnouts . | . . . Robots Hopped . | . . . Cave-ins Triggered . | . . . Exploration Rate (%) 13 | 3 18 19 Regions Visited 2 Branch Regions 1 Pre-discovered Areas . | . . . Known Exits Taken . | . . . Unknown Exits Taken 2 | 1 1 . Scrap Searched . | . . . Spaces Dug . | . . . Terrain Destroyed 41 | . . 41 Melee . | . . . Projectile . | . . . AOE 41 | . . 41 Terrain Rammed . | . . . Walls Destroyed . | . . . Machines Disabled . | . . . Actions | -11 -10 -10 --------- Run | Scr Mat Min Total 252 | 66 54 132 Wait 7 | 7 . . Move 178 | 47 45 86 Hop . | . . . Pick Up 11 | 6 2 3 Fast Attach 4 | 4 . . Attach 8 | 2 1 5 Detach . | . . . Swap 6 | . 3 3 Drop 1 | . 1 . Fire 37 | . 2 35 Melee . | . . . Ram . | . . . Kick . | . . . Crush . | . . . Escape Stasis . | . . . Rewire . | . . . Trap . | . . . Miscellaneous . | . . . Route ------- -11/Scrapyard -10/Materials -10/Mines History --------- Turn | Location | Event 8 | -11/Scrapyard | Discovered new exit (range 15) 67 | -11/Scrapyard | Entered Materials 129 | -10/Materials | Discovered new exit (range 9) 142 | -10/Materials | Entered Mines 205 | -10/Mines | Learned Materials interactive machine intel 219 | -10/Mines | Received a Rocket Launcher from a helpful Derelict 247 | -10/Mines | Core integrity fell below 50% 307 | -10/Mines | Assembled infested the area 310 | -10/Mines | Build established: Mutant 352 | -10/Mines | Core integrity fell below 20% 386 | -10/Mines | Destroyed by D-53 Grenadier with Mini Grenade Launcher Last Messages --------------- 00336_ as-97101 destroyed. 00347_ Acquired 2 matter. 00348_ Aluminum Leg destroyed. 00348_ System corrupted by crushing effect (+5). 00348_ as-71767 destroyed. 00348_ Assault Rifle destroyed. 00348_ Destroyed Assault Rifle. 00350_ Ion Engine destroyed. 00351_ as-93337 destroyed. 00351_ Destroyed Asb. Hover Unit. 00352_ System corrupted: Rocket Launcher rejected. 00353_ Knocked back. 00355_ The unstable cave ceiling collapses. 00362_ Knocked back. 00367_ Aluminum Leg destroyed. 00367_ System corrupted by crushing effect (+2). 00372_ System corrupted: Energy discharge (-58). 00384_ Knocked back. 00385_ U-05 Engineer lays Concrete. 00386_ U-05 Engineer builds a Wall. Map ----- +----------------------------------------------------+ | ????????????????????????????# #?????????? | | ????????????????????????????# #?????????? | | ????????????????????????????# #?????????? | | ????????????????????????????# #?????????? | | ????????????????????????????#%#?????????? | | ????????????????????????????# #?????????? | | ????????????????????????????# #?????????? | | ????????????????????????????# #?????????? | | ????????????????????????????# #?????????? | | ????????????????????????????# #?????????? | | ???????????????????????? ??# #?????????? | | ????????????????????? ?? ??# #?????????? | | ???????????????????? ??* ??# #?????????? | | ???????????????? # = ### #?????????? | | ??????????????# ? # #?????????? | | ??????????????# ? # ### #?????????? | | ??????????????# ??# ####??????? | | ?????????????#? ? ### ##?????? | | ????????????## ## ## d ## # #?????? | | ????????????? u # d# #?????? | | ??????????????? # #?????? | | ????????????????? # #%% #?????? | | ??????????????????? # ##?????? | | ????????????????????? % # ]# #?????? | | ??????????????????????? ## #?????? | | ????????????????????????#@ ## ##?????? | | ????????????????????????# #### ##??????? | | ????????????????????????# ##??# #???????? | | ????????????????????????#a#???# #???????? | | ???????????????????????## ##??# #???????? | | ??????????????????????## ##?# #???????? | | ??????????????????????# ### #???????? | | ??????????????????????# #???????? | | ??????????????????????## ####???????? | | ???????????????????????#< #??????????? | | ???????????????????????# ??????????? | | ???????????????????????## ###?????????? | | ????????????????????????#####???????????? | | ????????????????????????????????????????? | | ????????????????????????????????????????? | | ????????????????????????????????????????? | | ????????????????????????????????????????? | | ????????????????????????????????????????? | | ????????????????????????????????????????? | | ????????????????????????????????????????? | | | | | | | | | | | +----------------------------------------------------+ Best States ------------- Heat Dissipation 25 Energy Generation 10 Energy Capacity 250 Matter Stores 290 Matter Capacity 300 Sight Range 16 Terrain Scan Density 10 Evasion (%) 50 Recoil Reduction 2 Item Schematics ----------------- None Robot Schematics ------------------ None Fabricated ------------ Nothing Alien Tech Used ----------------- None Achievements -------------- None Challenges ------------ None Game ------ Seed GravitonHellfireNeutralizer Manual? 0 Play Time 00:08:29 Cumulative 8.2 hours Start 2020.09.29 @ 18:59:05 End 2020.09.29 @ 19:04:48 Sessions 1 Manual Loads 0 Difficulty Rogue Special Mode None Game No. 39 Rogue 39 Adventurer 0 Explorer 0 Win Type - Total 0 Types 0/0/0/0/0/0/0/0/0 Lore% 3 Gallery% 14 Achievement% 8 Wizard Run 0 Options --------- ASCII 0 Keyboard 0 Movement Mouse Keybinds 0 Fullscreen 1 Font 18/SmallcapsGlow Map View 76x50 Tactical HUD 1 Map Filters NONE Filters NONE Steam 1 RUN: 665f8918-29c6-4d79-bb34-ad45d13e4344